bitfinex-derivatives/quotes_SOLF0:USTF0_20250904
["timestamp","ask_amount","ask_price","bid_price","bid_amount"]
[1757012382087,4.0,203.21,203.17,7.34]
[1757012382294,1.95574926,203.22,203.17,7.34]
[1757012382692,4.0,203.21,203.17,7.34]
[1757012382889,1.95574926,203.22,203.17,7.37788552]
[1757012383093,1.95574926,203.22,203.17,0.03788552]
[1757012383596,4.0,203.21,203.17,0.03788552]
[1757012383797,1.95574926,203.22,203.17,0.03788552]
[1757012384292,4.0,203.21,203.17,0.03788552]
[1757012384492,1.95574926,203.22,203.17,0.03788552]
[1757012384794,122.0,203.22,203.17,0.03788552]
[1757012384995,4.0,203.21,203.17,0.03788552]
[1757012385185,122.0,203.22,203.17,0.03788552]
[1757012385689,4.0,203.22,203.17,0.03788552]
[1757012385894,4.0,203.21,203.17,7.37788552]
[1757012386597,4.0,203.21,203.17,0.03788552]
[1757012386798,4.0,203.21,203.18,7.34]
[1757012386997,4.4285,203.19,203.18,7.34]
[1757012389795,4.0,203.18,203.17,0.03788552]
[1757012390098,125.98,203.18,203.17,0.03788552]
[1757012391200,4.0,203.18,203.17,0.03788552]
[1757012391399,125.98,203.18,203.17,0.03788552]
[1757012392799,4.4285,203.19,203.17,0.03788552]
[1757012392991,121.98,203.18,203.17,0.03788552]
[1757012393191,125.98,203.18,203.17,0.03788552]
[1757012393400,126.4085,203.19,203.17,0.03788552]
[1757012393703,4.0,203.18,203.17,0.03788552]
[1757012398205,4.4285,203.19,203.17,0.03788552]
[1757012398408,121.98,203.18,203.17,0.03788552]
[1757012398605,125.98,203.18,203.17,0.03788552]
[1757012398912,4.0,203.18,203.17,0.03788552]
[1757012399210,125.98,203.18,203.17,0.03788552]
[1757012400008,121.98,203.18,203.17,0.03788552]
[1757012400207,4.4285,203.19,203.17,0.03788552]
[1757012400409,121.96,203.18,203.17,0.03788552]
[1757012400806,125.96,203.18,203.17,0.03788552]
[1757012401414,4.0,203.18,203.17,0.03788552]
[1757012401614,125.96,203.18,203.17,0.03788552]
[1757012401811,126.3885,203.19,203.18,7.62]
[1757012402115,126.3885,203.19,203.17,0.03788552]
[1757012403219,126.3885,203.19,203.17,7.65788552]
[1757012404512,4.4285,203.19,203.17,7.65788552]
[1757012404918,4.4285,203.19,203.17,0.03788552]
[1757012405319,8.4285,203.19,203.17,0.03788552]
[1757012405821,4.0,203.18,203.17,0.03788552]
[1757012406222,125.96,203.18,203.17,0.03788552]
[1757012408113,68.9029,203.15,203.08,4.1461631]
[1757012408311,68.9029,203.15,203.06,7.62]
[1757012408312,68.9098,203.13,203.06,7.62]
[1757012408514,3.96,203.12,203.06,7.62]
[1757012408715,68.9098,203.13,203.06,7.62]
[1757012408716,3.96,203.1,203.06,7.62]
[1757012409519,3.96,203.09,203.03,4.1461631]
[1757012409720,125.9,203.08,203.02,7.62]
[1757012411314,3.96,203.08,203.02,7.62]
[1757012411522,125.9,203.08,203.02,7.62]
[1757012411718,3.96,203.08,203.02,7.62]
[1757012411922,0.03598764,203.1,203.04,3.05348742]
[1757012412322,0.03598764,203.1,203.04,10.67348742]
[1757012413524,3.99598764,203.1,203.04,7.62]
[1757012415228,3.96,203.09,203.0,11.7661631]
[1757012415522,3.08947506,203.1,203.0,7.62]
[1757012415727,3.96,203.09,203.0,7.62]
[1757012416024,3.96,203.09,202.95,5.30945838]
[1757012416025,3.05348742,203.07,202.96,4.1461631]
[1757012416217,3.96,203.06,202.97,7.62]
[1757012416422,3.96,203.05,202.97,7.62]
[1757012416621,0.03146895,203.04,202.97,7.62]
[1757012416823,3.96,203.03,202.95,3.05348742]
[1757012417222,3.96,203.03,202.95,7.48708742]
[1757012417422,0.03146895,203.04,202.96,7.62]
[1757012417829,0.03146895,203.04,202.97,3.05348742]
[1757012418227,0.03146895,203.04,202.98,7.62]
[1757012422328,0.03146895,203.04,202.98,10.67348742]
[1757012422523,0.03146895,203.04,203.02,7.62]
[1757012423126,0.03146895,203.04,203.01,7.48568742]
[1757012423323,0.03146895,203.04,203.02,7.62]
[1757012423624,0.03146895,203.04,203.02,12.0521]
[1757012423820,0.03146895,203.04,203.03,7.62]
[1757012424223,4.0,203.13,203.06,7.62]
[1757012424428,317.16,203.14,203.06,7.62]
[1757012424628,317.16,203.14,203.07,3.05348742]
[1757012425026,4.0,203.16,203.08,7.62]
[1757012425529,4.0,203.16,203.06,3.05348742]
[1757012425732,4.0,203.14,203.04,7.62]
[1757012426635,4.43,203.13,203.04,7.62]
[1757012426831,4.0,203.14,203.04,7.62]
[1757012427028,4.0,203.14,203.04,3.05348742]
[1757012427231,4.0,203.14,203.08,7.62]
[1757012427431,3.05348742,203.18,203.08,7.62]
[1757012427432,4.0,203.17,203.08,7.62]
[1757012428831,4.0,203.17,203.05,4.4315]
[1757012429236,4.0,203.17,203.05,12.0515]
[1757012429437,3.05348742,203.18,203.05,12.0515]
[1757012429737,4.0,203.15,203.05,7.62]
[1757012430433,70.0,203.19,203.1,7.62]
[1757012430627,4.0,203.2,203.1,7.62]
[1757012430628,4.0,203.2,203.11,7.62]
[1757012430832,4.0,203.2,203.13,3.05348742]
[1757012431032,4.0,203.2,203.12,3.05348742]
[1757012431531,4.0,203.2,203.13,7.62]
[1757012431737,4.0,203.2,203.13,12.0496]
[1757012432739,8.4274,203.24,203.15,12.0493]
[1757012433038,4.0,203.22,203.15,7.62]
[1757012434338,8.428,203.22,203.15,7.62]
[1757012436239,4.0,203.22,203.15,7.62]
[1757012436442,4.4274,203.24,203.15,7.62]
[1757012436635,126.3474,203.24,203.15,7.62]
[1757012437534,126.3474,203.24,203.15,10.67348742]
[1757012437738,4.0,203.25,203.17,4.4289]
[1757012437941,121.9,203.24,203.17,4.4289]
[1757012438639,4.0,203.25,203.15,3.05348742]
[1757012438841,317.22,203.26,203.19,7.62]
[1757012439332,317.22,203.26,203.19,12.0483]
[1757012439732,317.22,203.26,203.2,4.4281]
[1757012439933,317.22,203.26,203.19,7.62]
[1757012440134,4.0,203.27,203.19,7.62]
[1757012440338,7.05348742,203.31,203.23,7.62]
[1757012440645,57.5,203.31,203.23,7.62]
[1757012441640,4.0,203.31,203.23,7.62]
[1757012442141,4.0,203.35,203.26,7.62]
[1757012442346,125.88,203.35,203.26,7.62]
[1757012442540,4.0,203.35,203.27,4.4266]
[1757012442742,125.88,203.35,203.26,7.62]
[1757012443142,4.0,203.35,203.26,7.62]
[1757012443337,4.0,203.35,203.26,12.0469]
[1757012443639,4.0,203.35,203.26,7.62]
[1757012445350,4.0,203.35,203.27,4.4266]
[1757012446450,8.4251,203.35,203.27,4.4266]
[1757012446953,8.4251,203.35,203.26,7.62]
[1757012447548,1.95192559,203.34,203.27,1.95192559]
[1757012447744,1.95192559,203.34,203.27,6.37852559]
[1757012448352,1.95192559,203.34,203.27,1.95192559]
[1757012449053,5.95192559,203.35,203.28,4.4264]
[1757012449453,5.95192559,203.35,203.29,0.0320167]
[1757012449656,3.98,203.33,203.29,0.0320167]
[1757012449856,3.98,203.37,203.3,7.94]
[1757012450052,123.79192559,203.36,203.3,9.89192559]
[1757012450251,121.84,203.36,203.3,9.89192559]
[1757012450449,0.03422138,203.35,203.3,1.95192559]
[1757012450649,0.03422138,203.35,203.32,9.89192559]
[1757012450846,0.03422138,203.35,203.33,7.94]
[1757012451048,0.03422138,203.35,203.33,12.3653]
[1757012451650,0.03422138,203.35,203.34,7.94]
[1757012453055,0.03422138,203.35,203.31,4.4258]
[1757012453251,0.03422138,203.35,203.33,7.94]
[1757012453853,0.03422138,203.35,203.34,7.94]
[1757012454155,0.03422138,203.35,203.34,9.89192559]
[1757012455162,0.03422138,203.35,203.32,9.89192559]
[1757012455459,0.03422138,203.35,203.33,7.94]
[1757012456557,0.03422138,203.35,203.34,9.89192559]
[1757012460269,5.96192559,203.46,203.4,12.3638]
[1757012460465,4.01,203.45,203.39,7.94]
[1757012460768,121.78,203.46,203.4,9.89192559]
[1757012461161,4.01,203.47,203.43,4.4231]
[1757012461363,4.01,203.47,203.43,12.3631]
[1757012461562,123.73192559,203.48,203.43,4.4231]
[1757012461759,4.01,203.47,203.43,4.4231]
[1757012461960,5.96192559,203.47,203.41,4.45985061]
[1757012462967,4.01,203.47,203.42,4.4233]
[1757012463166,4.01,203.46,203.42,12.3633]
[1757012464465,4.01,203.46,203.42,7.94]
[1757012464674,121.76,203.48,203.43,7.94]
[1757012464971,125.77,203.48,203.43,7.94]
[1757012465171,4.01,203.47,203.43,7.94]
[1757012465970,125.77,203.48,203.42,6.37532559]
[1757012466374,127.72192559,203.48,203.42,6.37532559]
[1757012466676,127.72192559,203.48,203.43,12.3631]
[1757012467173,4.01,203.47,203.41,4.45995061]
[1757012467372,4.01,203.47,203.41,1.9881762]
[1757012467968,4.01,203.47,203.42,4.4234]
[1757012468174,127.72192559,203.48,203.42,4.4234]
[1757012469877,127.72192559,203.48,203.41,9.9281762]
[1757012470178,4.01,203.45,203.41,7.97625061]
[1757012470377,1.95192559,203.46,203.41,7.97625061]
[1757012470577,4.01,203.45,203.41,7.97625061]
[1757012470878,4.01,203.45,203.41,0.03625061]
[1757012471578,4.01,203.44,203.41,0.03625061]
[1757012471878,4.01,203.44,203.41,12.39985061]
[1757012472173,4.01,203.45,203.41,0.03625061]
[1757012473468,1.95192559,203.44,203.41,0.03625061]
[1757012473674,4.01,203.43,203.41,0.03625061]
[1757012474380,1.95192559,203.44,203.41,0.03625061]
[1757012474581,4.01,203.47,203.41,7.97625061]
[1757012474782,125.73,203.44,203.41,7.97625061]
[1757012475576,121.72,203.45,203.41,12.39985061]
[1757012475773,4.01,203.47,203.42,7.94]
[1757012475978,121.72,203.48,203.41,9.9281762]
[1757012476975,4.01,203.47,203.43,4.4231]
[1757012477380,4.01,203.47,203.43,12.3631]
[1757012478780,4.01,203.47,203.43,11.9631]
[1757012479383,4.0,203.47,203.43,4.4231]
[1757012479576,4.0,203.47,203.43,11.9631]
[1757012479773,4.0,203.47,203.44,7.54]
[1757012479974,4.0,203.47,203.43,4.4231]
[1757012480176,4.0,203.47,203.43,11.9631]
[1757012480677,121.7,203.48,203.41,0.03625061]
[1757012480982,5.95192559,203.47,203.41,0.03625061]
[1757012481383,5.95192559,203.47,203.41,7.57625061]
[1757012481776,4.0,203.47,203.41,0.03625061]
[1757012481982,4.0,203.45,203.41,0.03625061]
[1757012482680,1.95192559,203.46,203.41,0.03625061]
[1757012482881,4.0,203.44,203.41,0.03625061]
[1757012483080,4.0,203.44,203.41,7.57625061]
[1757012483886,1.95192559,203.46,203.41,0.03625061]
[1757012484078,1.95192559,203.46,203.42,7.54]
[1757012484276,5.95192559,203.46,203.42,7.54]
[1757012485479,1.95192559,203.44,203.41,0.03625061]
[1757012485785,4.0,203.42,203.41,0.03625061]
[1757012486687,317.77576226,203.5,203.42,7.54]
[1757012486688,121.7,203.45,203.42,7.54]
[1757012486888,125.74,203.47,203.42,7.54]
[1757012487076,121.74,203.47,203.42,7.54]
[1757012487276,1.95192559,203.48,203.42,7.54]
[1757012487474,1.95192559,203.48,203.42,9.49192559]
[1757012487475,125.78,203.47,203.42,9.49192559]
[1757012487683,125.78,203.47,203.42,1.95192559]
[1757012487879,4.0,203.46,203.41,0.03625061]
[1757012488180,125.78,203.47,203.41,0.03625061]
[1757012488685,4.0,203.43,203.41,0.03625061]
[1757012489678,1.95192559,203.44,203.41,0.03625061]
[1757012490075,4.0,203.43,203.41,0.03625061]
[1757012490286,125.82,203.43,203.41,0.03625061]
[1757012490580,5.95192559,203.42,203.41,0.03625061]
[1757012492288,127.79192559,203.42,203.41,0.03625061]
[1757012492787,127.79192559,203.42,203.32,9.49192559]
[1757012492788,123.79192559,203.42,203.32,9.49192559]
[1757012492985,1.95192559,203.36,203.32,7.54]
[1757012493186,5.92192559,203.36,203.3,9.49192559]
[1757012493889,1.95192559,203.36,203.3,9.49192559]
[1757012494289,5.92192559,203.36,203.3,9.49192559]
[1757012495380,3.97,203.33,203.28,1.95192559]
[1757012495585,3.97,203.33,203.28,9.49192559]
[1757012495785,1.95192559,203.34,203.28,9.49192559]
[1757012495786,3.97,203.34,203.28,7.54]
[1757012495986,5.92192559,203.34,203.28,7.54]
[1757012496289,5.92192559,203.34,203.28,9.49192559]
[1757012497689,1.95192559,203.36,203.3,1.95192559]
[1757012498589,1.95192559,203.36,203.29,9.49192559]
[1757012499788,3.97,203.39,203.33,1.95192559]
[1757012500393,1.95192559,203.38,203.32,7.54]
[1757012500595,3.97,203.35,203.3,9.49192559]
[1757012500791,3.97,203.35,203.31,7.54]
[1757012500987,1.95192559,203.36,203.31,7.54]
[1757012501185,1.95192559,203.34,203.28,1.95192559]
[1757012501592,3.97,203.35,203.28,1.95192559]
[1757012501796,1.95192559,203.34,203.27,7.54]
[1757012504995,1.95192559,203.34,203.28,1.95192559]
[1757012505401,3.97,203.35,203.28,1.95192559]
[1757012505591,5.92192559,203.35,203.28,1.95192559]
[1757012506496,5.92192559,203.35,203.29,7.54]
[1757012507596,3.97,203.38,203.29,7.54]
[1757012508490,15.63586749,203.48,203.31,3.04960194]
[1757012508491,3.98,203.41,203.31,3.04960194]
[1757012508697,3.98,203.41,203.32,7.54]
[1757012509198,3.04960194,203.39,203.32,7.54]
[1757012509400,3.04960194,203.39,203.29,3.04960194]
[1757012509401,3.98,203.38,203.29,10.58960194]
[1757012509897,23.96,203.42,203.29,7.54]
[1757012509898,3.98,203.35,203.29,7.54]
[1757012511099,3.98,203.35,203.26,7.54]
[1757012511301,3.98,203.32,203.22,3.04960194]
[1757012511491,3.98,203.32,203.23,7.54]
[1757012512495,3.04960194,203.36,203.25,3.04960194]
[1757012512692,3.04960194,203.36,203.26,7.54]
[1757012513397,3.98,203.36,203.26,7.54]
[1757012515907,11.42960194,203.37,203.26,7.54]
[1757012516106,3.98,203.36,203.26,7.54]
[1757012516302,3.98,203.33,203.24,7.54]
[1757012517697,3.04960194,203.34,203.24,7.54]
[1757012517898,3.04960194,203.31,203.24,7.54]
[1757012518095,3.98,203.3,203.24,7.54]
[1757012518898,15.56960194,203.34,203.24,7.54]
[1757012519104,7.02960194,203.34,203.24,7.54]
[1757012520201,7.02960194,203.34,203.24,11.9673]
[1757012520401,7.02960194,203.34,203.25,7.54]
[1757012522405,3.98,203.34,203.26,7.54]
[1757012523508,47.80960194,203.38,203.27,7.54]
[1757012523712,44.76,203.38,203.27,7.54]
[1757012524013,3.98,203.37,203.27,7.54]
[1757012524306,3.98,203.34,203.27,7.54]
[1757012525411,20.20496723,203.43,203.27,7.54]
[1757012525712,7.02960194,203.39,203.29,7.54]
[1757012526014,7.02960194,203.39,203.3,7.54]
[1757012526306,3.98,203.38,203.3,7.54]
[1757012526513,3.98,203.32,203.24,7.54]
[1757012527009,3.04960194,203.33,203.24,7.54]
[1757012527010,3.04960194,203.3,203.24,7.54]
[1757012527311,7.02960194,203.3,203.24,7.54]
[1757012527708,3.04960194,203.27,203.18,7.54]
[1757012527914,3.98,203.26,203.18,7.54]
[1757012528511,4.4282,203.21,203.15,7.54]
[1757012529917,4.4277,203.23,203.15,7.54]
[1757012530714,3.04960194,203.25,203.15,4.4292]
[1757012530916,3.98,203.26,203.16,7.54]
[1757012531112,3.98,203.26,203.17,4.4288]
[1757012531317,3.98,203.26,203.18,7.54]
[1757012531723,3.98,203.3,203.19,7.54]
[1757012531922,3.98,203.3,203.21,7.54]
[1757012532822,7.02960194,203.27,203.21,7.54]
[1757012534016,3.98,203.26,203.14,4.1299403]
[1757012534225,3.98,203.21,203.13,9.37154582]
[1757012534417,3.98,203.21,203.13,7.54]
[1757012535923,41.72,203.21,203.09,7.54]
[1757012536130,11.92099394,203.2,203.09,7.54]
[1757012536427,3.98,203.2,203.09,7.54]
[1757012537025,3.98,203.2,203.11,7.54]
[1757012538027,4.429,203.17,203.11,7.54]
[1757012538221,72.8799,203.16,203.07,7.87]
[1757012538424,3.98,203.16,203.07,7.87]
[1757012538629,4.4292,203.17,203.07,7.87]
[1757012539224,4.4292,203.17,203.08,7.87]
[1757012539733,3.98,203.2,203.09,4.4307]
[1757012539930,3.98,203.2,203.1,7.87]
[1757012541028,76.81209394,203.25,203.05,68.9349]
[1757012541029,128.44,203.24,203.12,7.87]
[1757012541225,124.46,203.24,203.12,7.87]
[1757012541424,3.98,203.23,203.12,7.87]
[1757012542328,124.46,203.24,203.12,7.87]
[1757012542926,3.98,203.23,203.12,7.87]
[1757012543125,124.46,203.24,203.12,7.87]
[1757012543833,3.98,203.23,203.12,7.87]
[1757012545625,124.54,203.22,203.12,7.87]
[1757012545832,3.98,203.21,203.12,7.87]
[1757012546229,4.4288,203.18,203.12,7.87]
[1757012546935,7.94099394,203.27,203.12,7.87]
[1757012546936,128.56,203.25,203.12,7.87]
[1757012547937,4.4279,203.22,203.14,7.87]
[1757012548131,3.98,203.25,203.14,7.87]
[1757012548836,4.4276,203.24,203.16,7.87]
[1757012549536,4.4278,203.23,203.16,7.87]
[1757012550031,4.4281,203.22,203.16,7.87]
[1757012550237,3.98,203.24,203.16,7.87]
[1757012551734,3.98,203.25,203.12,7.87]
[1757012551941,193.4461,203.26,203.12,7.87]
[1757012552140,3.98,203.25,203.12,7.87]
[1757012552334,193.4461,203.26,203.12,7.87]
[1757012552736,3.98,203.25,203.12,7.87]
[1757012553039,193.4461,203.26,203.12,7.87]
[1757012553242,3.98,203.25,203.12,7.87]
[1757012553738,103.14,203.24,203.12,7.87]
[1757012554133,3.98,203.25,203.11,68.9159]
[1757012554330,107.64,203.25,203.12,7.87]
[1757012554539,3.98,203.25,203.12,7.87]
[1757012555540,7.03311817,203.25,203.13,3.05311817]
[1757012555840,7.03311817,203.22,203.12,7.87]
[1757012557341,3.98,203.22,203.12,7.87]
[1757012557540,3.05311817,203.2,203.12,7.87]
[1757012557741,4.4289,203.18,203.12,7.87]
[1757012557946,4.4289,203.18,203.12,12.2999]
[1757012558541,4.4284,203.2,203.13,4.4297]
[1757012558745,124.5,203.25,203.16,3.05311817]
[1757012559044,72.8461,203.26,203.17,7.87]
[1757012559240,4.4279,203.22,203.16,3.05311817]
[1757012559444,4.4279,203.22,203.17,7.87]
[1757012559745,4.4279,203.22,203.16,3.05311817]
[1757012560042,4.4279,203.22,203.17,7.87]
[1757012560437,4.4279,203.22,203.16,3.05311817]
[1757012561142,4.4279,203.22,203.15,7.48231817]
[1757012561340,4.4279,203.22,203.16,7.87]
[1757012561544,4.4283,203.21,203.16,7.87]
[1757012561844,4.4283,203.21,203.15,10.92311817]
[1757012562240,4.4283,203.21,203.15,7.87]
[1757012562443,4.4285,203.2,203.13,7.87]
[1757012562644,3.98,203.23,203.13,7.87]
[1757012562939,4.428,203.22,203.16,7.87]
[1757012563142,3.05311817,203.24,203.16,7.87]
[1757012563939,4.428,203.22,203.16,7.87]
[1757012565743,4.4275,203.24,203.16,4.429]
[1757012565947,3.98,203.28,203.19,7.87]
[1757012566144,128.56,203.28,203.19,7.87]
[1757012566848,4.4271,203.26,203.19,12.2984]
[1757012569453,4.4271,203.26,203.2,1.95312151]
[1757012570047,4.4266,203.28,203.22,1.95312151]
[1757012570853,4.4266,203.28,203.24,1.95312151]
[1757012571046,4.4269,203.27,203.22,1.95312151]
[1757012571250,4.4269,203.27,203.23,7.36]
[1757012571647,3.98,203.28,203.21,1.95312151]
[1757012571848,1.95312151,203.27,203.21,1.95312151]
[1757012572860,4.4269,203.27,203.24,7.36]
[1757012573757,4.4263,203.3,203.24,7.36]
[1757012573951,130.19312151,203.31,203.24,7.36]
[1757012574256,130.19312151,203.31,203.25,1.95312151]
[1757012574755,4.4265,203.29,203.25,1.95312151]
[1757012574949,130.19312151,203.31,203.25,1.95312151]
[1757012574950,130.19312151,203.31,203.26,7.36]
[1757012575155,130.19312151,203.31,203.25,9.31312151]
[1757012575342,5.93312151,203.31,203.25,9.31312151]
[1757012575545,130.11312151,203.35,203.27,9.31312151]
[1757012575850,1.95312151,203.33,203.27,9.31312151]
[1757012576959,4.4261,203.3,203.27,9.31312151]
[1757012577359,4.4261,203.3,203.27,1.95312151]
[1757012577567,4.4258,203.32,203.28,7.36]
[1757012577858,128.16,203.35,203.3,7.36]
[1757012578053,128.16,203.35,203.29,1.95312151]
[1757012578054,4.426,203.31,203.29,1.95312151]
[1757012578261,1.95312151,203.33,203.26,1.95312151]
[1757012578650,4.4257,203.32,203.27,7.36]
[1757012578858,5.93312151,203.34,203.28,7.36]
[1757012579362,3.98,203.34,203.28,7.36]
[1757012579658,1.95312151,203.33,203.28,7.36]
[1757012579855,4.426,203.31,203.28,7.36]
[1757012580555,5.93312151,203.33,203.27,1.95312151]
[1757012580556,4.4255,203.33,203.27,1.95312151]
[1757012580757,4.4255,203.33,203.29,9.31312151]
[1757012580952,5.93312151,203.35,203.29,7.36]
[1757012581156,5.93312151,203.35,203.27,1.95312151]
[1757012581456,1.95312151,203.33,203.27,1.95312151]
[1757012581860,4.4263,203.3,203.28,7.36]
[1757012582561,1.95312151,203.37,203.29,1.95312151]
[1757012582764,1.95312151,203.37,203.31,1.95312151]
[1757012583554,321.0,203.38,203.31,1.95312151]
[1757012583757,3.98,203.38,203.34,7.36]
[1757012585864,1.95312151,203.38,203.31,1.95312151]
[1757012586365,1.95312151,203.38,203.3,7.36]
[1757012586565,3.98,203.37,203.31,1.95312151]
[1757012588158,3.98,203.37,203.3,9.31312151]
[1757012588863,1.95312151,203.36,203.3,9.31312151]
[1757012589866,1.95312151,203.36,203.3,7.36]
[1757012590870,1.95312151,203.36,203.3,9.31312151]
[1757012591061,3.98,203.37,203.3,9.31312151]
[1757012591263,5.93312151,203.37,203.3,7.36]
[1757012591568,5.93312151,203.37,203.31,1.95312151]
[1757012592269,1.95312151,203.38,203.32,7.36]
[1757012592472,1.95312151,203.43,203.36,7.36]
[1757012592678,3.98,203.45,203.37,1.95312151]
[1757012592866,5.93312151,203.45,203.37,1.95312151]
[1757012593162,1.95312151,203.43,203.36,9.31312151]
[1757012593564,1.95312151,203.41,203.36,7.36]
[1757012593765,3.98,203.4,203.36,7.36]
[1757012594364,3.98,203.45,203.36,1.95312151]
[1757012594560,1.95312151,203.42,203.36,1.95312151]
[1757012594961,1.95312151,203.4,203.34,1.95312151]
[1757012595371,1.95312151,203.39,203.34,9.31312151]
[1757012595561,1.95312151,203.39,203.35,7.36]
[1757012595963,5.93312151,203.39,203.35,7.36]
[1757012596472,1.95312151,203.4,203.34,7.36]
[1757012596673,1.95312151,203.42,203.35,1.95312151]
[1757012596972,1.95312151,203.42,203.34,9.31312151]
[1757012597167,3.98,203.51,203.36,7.36]
[1757012597367,3.98,203.48,203.36,7.36]
[1757012597672,1.95312151,203.47,203.41,1.95312151]
[1757012598477,3.98,203.48,203.43,1.95312151]
[1757012598671,5.92312151,203.49,203.43,7.46]
[1757012600669,3.97,203.49,203.43,7.46]
[1757012600876,5.92312151,203.49,203.43,7.46]
[1757012602374,1.95312151,203.5,203.45,7.46]
[1757012602584,5.92312151,203.5,203.44,9.41312151]
[1757012602875,46.63,203.54,203.46,1.95312151]
[1757012603066,1.95312151,203.52,203.46,1.95312151]
[1757012603978,3.97,203.51,203.44,9.41312151]
[1757012605277,3.97,203.51,203.44,7.46]
[1757012605479,3.97,203.51,203.45,1.95312151]
[1757012606679,1.95312151,203.52,203.45,1.95312151]
[1757012607276,46.63,203.54,203.47,1.95312151]
[1757012607476,48.58312151,203.54,203.47,1.95312151]
[1757012608079,1.95312151,203.52,203.46,1.95312151]
[1757012608275,1.95312151,203.52,203.47,7.46]
[1757012608480,1.95312151,203.52,203.46,9.41312151]
[1757012610579,1.95312151,203.51,203.46,7.46]
[1757012610785,1.95312151,203.51,203.45,9.41312151]
[1757012612183,1.95312151,203.53,203.47,1.95312151]
[1757012617082,1.95312151,203.56,203.5,7.46]
[1757012618881,3.97,203.53,203.47,1.95312151]
[1757012619487,3.97,203.59,203.5,7.46]
[1757012619679,1.95312151,203.56,203.5,7.46]
[1757012620983,3.97,203.57,203.5,7.46]
[1757012621185,1.95312151,203.56,203.5,7.46]
[1757012621581,1.95312151,203.58,203.52,7.46]
[1757012621786,6.77846309,203.6,203.53,1.95312151]
[1757012621987,5.92312151,203.6,203.54,7.46]
[1757012624585,1.95312151,203.61,203.55,1.95312151]
[1757012625986,1.95312151,203.61,203.55,9.41312151]
[1757012626887,1.95312151,203.61,203.57,7.46]
[1757012627779,5.92312151,203.63,203.57,7.34]
[1757012629588,1.95312151,203.59,203.49,7.34]
[1757012629786,1.95312151,203.59,203.53,1.95312151]
[1757012629986,1.95312151,203.59,203.53,9.29312151]
[1757012631486,7.00233241,203.61,203.53,7.34]
[1757012638297,3.96,203.6,203.53,7.34]
[1757012638497,3.04233241,203.58,203.45,7.46513241]
[1757012638693,3.04233241,203.58,203.46,7.34]
[1757012638694,3.96,203.58,203.46,7.34]
[1757012638996,3.96,203.58,203.45,3.04233241]
[1757012638997,3.96,203.6,203.5,3.04233241]
[1757012639193,3.96,203.6,203.51,7.34]
[1757012642192,3.04233241,203.62,203.51,7.34]
[1757012642595,4.81518394,203.64,203.53,3.04233241]
[1757012642791,4.81518394,203.64,203.54,7.34]
[1757012642995,3.96,203.64,203.54,7.34]
[1757012643694,3.96,203.61,203.54,7.34]
[1757012647003,8.48729964,203.64,203.54,7.34]
[1757012647203,7.00233241,203.64,203.54,7.34]
[1757012648201,3.96,203.64,203.54,10.38233241]
[1757012648396,13.30236801,203.67,203.55,7.34]
[1757012648596,7.85740078,203.67,203.55,7.34]
[1757012648797,7.85740078,203.67,203.57,7.34]
[1757012649198,4.81506837,203.67,203.57,7.34]
[1757012649405,3.96,203.67,203.57,7.34]
[1757012654714,3.96,203.67,203.58,7.34]
[1757012658523,317.69496333,203.69,203.58,10.38233241]